[Event "Titled Tuesday Blitz November 01 Early 2022"]
[White "Yurasova, Daria"]
[Black "Arabidze, Meri"]
[WhiteFideId "34146919"]
[BlackFideId "13604040"]
[WhiteElo "2044"]
[BlackElo "2403"]
[Result "0-1"]
[Round "11"]
[TimeControl "180+1"]
[Date "2022.11.02"]
[WhiteClock "0:00:06"]
[BlackClock "0:00:10"]

1. d4 {[%clk 0:03:00]}  Nf6 {[%clk 0:02:57]} 2. Bg5 {[%clk 0:02:59]}  d5 {[%clk 0:02:57]} 3. Bxf6 {[%clk 0:02:59]}  exf6 {[%clk 0:02:58]} 4. e3 {[%clk 0:02:59]}  c6 {[%clk 0:02:57]} 5. g3 {[%clk 0:03:00]}  Bd6 {[%clk 0:02:57]} 6. Bg2 {[%clk 0:03:00]}  O-O {[%clk 0:02:57]} 7. Ne2 {[%clk 0:03:01]}  Nd7 {[%clk 0:02:57]} 8. O-O {[%clk 0:03:02]}  f5 {[%clk 0:02:57]} 9. Nd2 {[%clk 0:03:00]}  Nf6 {[%clk 0:02:57]} 10. c4 {[%clk 0:03:01]}  dxc4 {[%clk 0:02:56]} 11. Nxc4 {[%clk 0:03:01]}  Bc7 {[%clk 0:02:57]} 12. Nc3 {[%clk 0:02:59]}  Be6 {[%clk 0:02:56]} 13. Nd2 {[%clk 0:02:59]}  g6 {[%clk 0:02:53]} 14. Qc2 {[%clk 0:02:59]}  Rc8 {[%clk 0:02:50]} 15. b4 {[%clk 0:02:59]}  Bd6 {[%clk 0:02:49]} 16. Rab1 {[%clk 0:02:57]}  h5 {[%clk 0:02:48]} 17. h4 {[%clk 0:02:56]}  Ng4 {[%clk 0:02:46]} 18. Nf3 {[%clk 0:02:53]}  Qe7 {[%clk 0:02:34]} 19. a3 {[%clk 0:02:53]}  Rfe8 {[%clk 0:02:31]} 20. Rfe1 {[%clk 0:02:47]}  Qc7 {[%clk 0:02:10]} 21. Na4 {[%clk 0:02:40]}  Bxg3 {[%clk 0:02:00]} 22. fxg3 {[%clk 0:02:40]}  Qxg3 {[%clk 0:02:01]} 23. Nc3 {[%clk 0:02:21]}  Bc4 {[%clk 0:01:45]} 24. Qd2 {[%clk 0:02:07]}  Rcd8 {[%clk 0:01:41]} 25. Rbc1 {[%clk 0:01:51]}  Re7 {[%clk 0:01:39]} 26. Nd1 {[%clk 0:01:50]}  Bd5 {[%clk 0:01:37]} 27. Rf1 {[%clk 0:01:46]}  Rde8 {[%clk 0:01:36]} 28. Rc3 {[%clk 0:01:45]}  f4 {[%clk 0:01:30]} 29. Qe1 {[%clk 0:01:02]}  Nxe3 {[%clk 0:00:53]} 30. Qxg3 {[%clk 0:00:53]}  fxg3 {[%clk 0:00:54]} 31. Nxe3 {[%clk 0:00:47]}  Rxe3 {[%clk 0:00:55]} 32. Rxe3 {[%clk 0:00:48]}  Rxe3 {[%clk 0:00:56]} 33. Ne5 {[%clk 0:00:42]}  Re2 {[%clk 0:00:29]} 34. Bxd5 {[%clk 0:00:40]}  cxd5 {[%clk 0:00:30]} 35. Rf3 {[%clk 0:00:34]}  Re4 {[%clk 0:00:25]} 36. Nxf7 {[%clk 0:00:24]}  Rxh4 {[%clk 0:00:23]} 37. Kg2 {[%clk 0:00:19]}  Rxd4 {[%clk 0:00:22]} 38. Kxg3 {[%clk 0:00:20]}  Rg4+ {[%clk 0:00:18]} 39. Kh3 {[%clk 0:00:19]}  Kg7 {[%clk 0:00:17]} 40. Ne5 {[%clk 0:00:20]}  Re4 {[%clk 0:00:16]} 41. Nd3 {[%clk 0:00:19]}  g5 {[%clk 0:00:13]} 42. Kg2 {[%clk 0:00:18]}  Kg6 {[%clk 0:00:13]} 43. Nc5 {[%clk 0:00:18]}  Re2+ {[%clk 0:00:13]} 44. Rf2 {[%clk 0:00:18]}  Rxf2+ {[%clk 0:00:13]} 45. Kxf2 {[%clk 0:00:19]}  b6 {[%clk 0:00:13]} 46. Ne6 {[%clk 0:00:15]}  Kf5 {[%clk 0:00:11]} 47. Nc7 {[%clk 0:00:15]}  d4 {[%clk 0:00:10]} 48. Nb5 {[%clk 0:00:16]}  d3 {[%clk 0:00:11]} 49. Ke3 {[%clk 0:00:14]}  h4 {[%clk 0:00:11]} 50. Kxd3 {[%clk 0:00:14]}  h3 {[%clk 0:00:11]} 51. Nd4+ {[%clk 0:00:12]}  Kf4 {[%clk 0:00:11]} 52. Ne6+ {[%clk 0:00:11]}  Kg4 {[%clk 0:00:10]} 53. Ke3 {[%clk 0:00:04]}  h2 {[%clk 0:00:10]} 54. Nd4 {[%clk 0:00:03]}  h1=Q {[%clk 0:00:10]} 55. Kd3 {[%clk 0:00:04]}  Qh3+ {[%clk 0:00:10]} 56. Kc4 {[%clk 0:00:04]}  Qxa3 {[%clk 0:00:10]} 57. Nc6 {[%clk 0:00:05]}  Qc1+ {[%clk 0:00:09]} 58. Kb5 {[%clk 0:00:05]}  a5 {[%clk 0:00:06]} 59. bxa5 {[%clk 0:00:03]}  Qxc6+ {[%clk 0:00:06]} 60. Kxc6 {[%clk 0:00:03]}  bxa5 {[%clk 0:00:07]} 61. Kb5 {[%clk 0:00:03]}  Kf3 {[%clk 0:00:07]} 62. Kxa5 {[%clk 0:00:04]}  g4 {[%clk 0:00:08]} 63. Kb4 {[%clk 0:00:05]}  g3 {[%clk 0:00:09]} 64. Kc3 {[%clk 0:00:06]}  g2 {[%clk 0:00:10]} 0-1


[Site "https://www.chess.com"]

[Event "Titled Tuesday Blitz November 01 Early 2022"]
[White "Zaichenko, Daria"]
[Black "Kanyamarala, Tarun"]
[WhiteFideId "4197453"]
[BlackFideId "45004714"]
[WhiteElo "2039"]
[BlackElo "2307"]
[Result "1-0"]
[Round "11"]
[TimeControl "180+1"]
[Date "2022.11.02"]
[WhiteClock "0:00:04"]
[BlackClock "0:00:09"]

1. e4 {[%clk 0:02:59]}  c5 {[%clk 0:02:59]} 2. Nf3 {[%clk 0:02:58]}  e6 {[%clk 0:02:59]} 3. d4 {[%clk 0:02:47]}  cxd4 {[%clk 0:03:00]} 4. Nxd4 {[%clk 0:02:43]}  a6 {[%clk 0:03:01]} 5. c4 {[%clk 0:02:40]}  Nf6 {[%clk 0:03:01]} 6. Nc3 {[%clk 0:02:40]}  Qc7 {[%clk 0:03:01]} 7. Be3 {[%clk 0:02:34]}  b6 {[%clk 0:03:01]} 8. Bd3 {[%clk 0:02:30]}  Bb7 {[%clk 0:02:55]} 9. a3 {[%clk 0:02:28]}  Nc6 {[%clk 0:02:54]} 10. Nxc6 {[%clk 0:02:20]}  Bxc6 {[%clk 0:02:48]} 11. O-O {[%clk 0:02:18]}  Bc5 {[%clk 0:02:46]} 12. Qd2 {[%clk 0:02:00]}  h5 {[%clk 0:02:46]} 13. Bxc5 {[%clk 0:01:59]}  bxc5 {[%clk 0:02:45]} 14. f4 {[%clk 0:01:59]}  d6 {[%clk 0:02:32]} 15. Rae1 {[%clk 0:01:57]}  h4 {[%clk 0:02:25]} 16. h3 {[%clk 0:01:56]}  Nh5 {[%clk 0:02:22]} 17. Qe3 {[%clk 0:01:53]}  Ng3 {[%clk 0:02:22]} 18. Rf3 {[%clk 0:01:52]}  O-O {[%clk 0:02:17]} 19. Kh2 {[%clk 0:01:47]}  Rae8 {[%clk 0:02:17]} 20. f5 {[%clk 0:01:33]}  exf5 {[%clk 0:02:16]} 21. Qg5 {[%clk 0:01:33]}  fxe4 {[%clk 0:02:13]} 22. Qxh4 {[%clk 0:01:29]}  exd3 {[%clk 0:02:08]} 23. Rxg3 {[%clk 0:01:02]}  g6 {[%clk 0:01:50]} 24. Rxe8 {[%clk 0:00:58]}  Rxe8 {[%clk 0:01:49]} 25. Nd5 {[%clk 0:00:57]}  Bxd5 {[%clk 0:01:48]} 26. cxd5 {[%clk 0:00:58]}  c4 {[%clk 0:01:47]} 27. Qd4 {[%clk 0:00:38]}  Rb8 {[%clk 0:01:15]} 28. Rg4 {[%clk 0:00:33]}  Rb5 {[%clk 0:01:06]} 29. Rh4 {[%clk 0:00:20]}  f6 {[%clk 0:00:34]} 30. Qxf6 {[%clk 0:00:19]}  Qg7 {[%clk 0:00:33]} 31. Qd8+ {[%clk 0:00:15]}  Qf8 {[%clk 0:00:30]} 32. Rh8+ {[%clk 0:00:14]}  Kxh8 {[%clk 0:00:30]} 33. Qxf8+ {[%clk 0:00:14]}  Kh7 {[%clk 0:00:31]} 34. Qf7+ {[%clk 0:00:14]}  Kh8 {[%clk 0:00:29]} 35. Qf8+ {[%clk 0:00:13]}  Kh7 {[%clk 0:00:29]} 36. Qxd6 {[%clk 0:00:11]}  d2 {[%clk 0:00:27]} 37. Qe7+ {[%clk 0:00:11]}  Kh8 {[%clk 0:00:26]} 38. Qe2 {[%clk 0:00:09]}  Rxd5 {[%clk 0:00:25]} 39. Qe8+ {[%clk 0:00:04]}  Kg7 {[%clk 0:00:23]} 40. Qe7+ {[%clk 0:00:05]}  Kh6 {[%clk 0:00:16]} 41. Qf8+ {[%clk 0:00:04]}  Kg5 {[%clk 0:00:16]} 42. h4+ {[%clk 0:00:05]}  Kxh4 {[%clk 0:00:11]} 43. Qf4+ {[%clk 0:00:04]}  Kh5 {[%clk 0:00:09]} 44. Qf3+ {[%clk 0:00:03]}  Kh6 {[%clk 0:00:07]} 45. Qxd5 {[%clk 0:00:04]}  d1=Q {[%clk 0:00:08]} 46. Qxd1 {[%clk 0:00:04]}  c3 {[%clk 0:00:09]} 47. bxc3 {[%clk 0:00:04]} 1-0


[Site "https://www.chess.com"]

[Event "Titled Tuesday Blitz November 01 Early 2022"]
[White "Zemlyanskii, Ivan"]
[Black "Martinez Alcantara, Jose Eduardo"]
[WhiteFideId "24249971"]
[BlackFideId "3805662"]
[WhiteElo "2107"]
[BlackElo "2703"]
[Result "1-0"]
[Round "11"]
[TimeControl "180+1"]
[Date "2022.11.01"]
[WhiteClock "0:00:18"]
[BlackClock "0:02:34"]

1. d4 {[%clk 0:02:59]}  a5 {[%clk 0:03:00]} 2. e4 {[%clk 0:02:57]}  a4 {[%clk 0:03:01]} 3. c4 {[%clk 0:02:53]}  a3 {[%clk 0:03:01]} 4. Nxa3 {[%clk 0:02:51]}  g6 {[%clk 0:03:02]} 5. Nf3 {[%clk 0:02:50]}  Bg7 {[%clk 0:03:03]} 6. Bd3 {[%clk 0:02:48]}  d6 {[%clk 0:03:04]} 7. Nc2 {[%clk 0:02:48]}  Bg4 {[%clk 0:03:04]} 8. O-O {[%clk 0:02:47]}  Bxf3 {[%clk 0:03:05]} 9. Qxf3 {[%clk 0:02:48]}  Nc6 {[%clk 0:03:05]} 10. Be3 {[%clk 0:02:44]}  Nf6 {[%clk 0:03:05]} 11. Qe2 {[%clk 0:02:40]}  O-O {[%clk 0:03:06]} 12. b4 {[%clk 0:02:35]}  Nd7 {[%clk 0:03:06]} 13. b5 {[%clk 0:02:28]}  Na5 {[%clk 0:03:06]} 14. f4 {[%clk 0:02:16]}  c5 {[%clk 0:03:07]} 15. bxc6 {[%clk 0:02:13]}  bxc6 {[%clk 0:03:06]} 16. Rab1 {[%clk 0:02:08]}  c5 {[%clk 0:03:06]} 17. d5 {[%clk 0:01:59]}  e6 {[%clk 0:03:06]} 18. dxe6 {[%clk 0:01:45]}  fxe6 {[%clk 0:03:07]} 19. f5 {[%clk 0:01:36]}  Qe8 {[%clk 0:03:07]} 20. fxe6 {[%clk 0:01:25]}  Qxe6 {[%clk 0:03:07]} 21. Na3 {[%clk 0:01:26]}  Nc6 {[%clk 0:03:05]} 22. Nb5 {[%clk 0:01:26]}  Nd4 {[%clk 0:03:05]} 23. Rxf8+ {[%clk 0:01:11]}  Rxf8 {[%clk 0:03:05]} 24. Bxd4 {[%clk 0:01:03]}  cxd4 {[%clk 0:03:05]} 25. c5 {[%clk 0:01:00]}  Ne5 {[%clk 0:03:04]} 26. Nxd4 {[%clk 0:00:46]}  Qf6 {[%clk 0:02:58]} 27. Bc4+ {[%clk 0:00:44]}  Kh8 {[%clk 0:02:57]} 28. Ne6 {[%clk 0:00:38]}  Re8 {[%clk 0:02:51]} 29. Nxg7 {[%clk 0:00:35]}  Kxg7 {[%clk 0:02:50]} 30. cxd6 {[%clk 0:00:33]}  Qxd6 {[%clk 0:02:51]} 31. Bd5 {[%clk 0:00:32]}  Qc5+ {[%clk 0:02:51]} 32. Qf2 {[%clk 0:00:28]}  Qd6 {[%clk 0:02:46]} 33. Rb7+ {[%clk 0:00:21]}  Kh8 {[%clk 0:02:46]} 34. Qa7 {[%clk 0:00:18]}  Re6 {[%clk 0:02:34]} 35. Rxh7+ {[%clk 0:00:18]}  Kg8 {[%clk 0:02:34]} 36. Qg7# {[%clk 0:00:18]} 1-0


[Site "https://www.chess.com"]